Cogmind - Beta 16 @@@ ROGUE MODE // 2025.10.28 @ 01:32:49 Player: welikiq Result: Self-destructed Performance ------------- Evolutions (1) 500 Regions Visited (2) 400 Robots Destroyed (26) 130 Value Destroyed (462) 462 Prototype IDs (0) 0 Alien Tech Used (0) 0 Bonus (0) 0 TOTAL SCORE: 1492 Bonus ------- None Cogmind --------- Core Integrity 386/400 Matter 198/300 Energy 265/265 System Corruption 0% Temperature Cool (0) Movement Walking (105) Location -9/Materials Parts ------- > --- POWER (1) -------- Improved Ion Engine > --- PROPULSION (4) --- Aluminum Leg Aluminum Leg Aluminum Leg > --- UTILITY (2) ------ (None) > --- WEAPON (2) ------- EM Pulse Gun Grenade Launcher > --- INVENTORY (5) ---- Ion Engine Sensor Array Seismic Detector Assault Rifle Mining Laser Peak State ------------ > --- POWER ------------ Ion Engine > --- PROPULSION ------- Aluminum Leg Aluminum Leg Aluminum Leg Aluminum Leg > --- UTILITY ---------- Terrain Scanner Seismic Detector > --- WEAPON ----------- EM Pulse Gun Assault Rifle > --- INVENTORY -------- Grenade Launcher Mining Laser [Rating: 9] Favorites ----------- Power Ion Engine Engine Ion Engine Propulsion Aluminum Leg Leg Aluminum Leg Utility Seismic Detector Device Seismic Detector Storage Small Storage Unit Processor Signal Interpreter Weapon EM Pulse Gun Energy Gun EM Pulse Gun Ballistic Gun Assault Rifle Launcher Grenade Launcher Special Weapon Mining Laser Build | -11 -10 -9 ------- Run | Yrd Mat Mat Slots Evolved 2 | . . 2 Power . | . . . Propulsion 2 | . . 2 Utility . | . . . Weapon . | . . . Parts Attached 16 | 6 4 6 Power 2 | 1 . 1 Engine 2 | 1 . 1 Core . | . . . Reactor . | . . . Propulsion 4 | 2 . 2 Treads . | . . . Leg 4 | 2 . 2 Wheel . | . . . Hover . | . . . Flight . | . . . Utility 5 | 1 2 2 Device 3 | 1 1 1 Storage 1 | . 1 . Processor 1 | . . 1 Hackware . | . . . Protection . | . . . Artifact . | . . . Weapon 5 | 2 2 1 Energy Gun 2 | 1 1 . Energy Cannon . | . . . Ballistic Gun 1 | 1 . . Ballistic Cannon . | . . . Launcher 1 | . 1 . Special Weapon 1 | . . 1 Impact Weapon . | . . . Slashing Weapon . | . . . Piercing Weapon . | . . . Special Melee Weapon . | . . . Unidentified Prototypes . | . . . Parts Lost 2 | . . 2 Power . | . . . Propulsion 1 | . . 1 Utility 1 | . . 1 Weapon . | . . . Highest Loss Streak 2 | . . 2 To Critical Strikes . | . . . Average Backups 2 | . 2 3 Power . | . . . Propulsion . | . . . Utility . | . . 1 Weapon 1 | . 1 2 Tool/Special . | . . . Unused Backups 1 | . 1 . Power . | . . . Propulsion 1 | . 1 . Utility . | . . . Weapon . | . . . Tool/Special . | . . . Average Slot Usage (%) 92 | . 93 89 Engine 13 | . 14 11 Leg 31 | . 28 42 Device 18 | . 20 12 Energy Gun 13 | . 14 11 Ballistic Gun 11 | . 13 6 Launcher 1 | . . 3 Peak Build Rating 9 | 6 7 9 Average Rating 6 | 4 6 8 On Entrance 4 | . 6 7 Avg Prop Armor Cover (%) . | . . . Naked Turns . | . . . Heaviest Build 15 | 10 15 13 Greatest Support 40 | 20 20 40 Greatest Overweight (x) . | . . . Average Overweight (x) . | . . . Largest Inventory Capacity 8 | 5 8 5 Average Capacity 5 | 5 5 5 Most Carried 5 | 1 5 5 Average Carried 2 | . 2 3 Final Capacity 5 | 5 5 5 Final Carried 5 | 1 4 5 Class Distribution -------------------- 100% | Mutant Dominant Class ---------------- Mutant | -10/Materials Mutant | -9/Materials Resources | -11 -10 -9 ----------- Run | Yrd Mat Mat Matter Collected 557 | 246 187 124 Remotely . | . . . Salvage Created 678 | 41 431 206 Parts 53 | 5 30 18 Haulers Intercepted 2 | . 2 . Recyclers Shooed 2 | . 2 . Parts Field Recycled . | . . . Retrieved Matter . | . . . Parts Self-Destructed . | . . . Prevented . | . . . Parts Restored . | . . . Kills | -11 -10 -9 ------- Run | Yrd Mat Mat Combat Hostiles Destroyed 15 | . 9 6 Guns 10 | . 7 3 AOE 5 | . 2 3 Classes Destroyed 9 | 1 5 3 Worker 2 | . 2 . Builder 1 | . . 1 Tunneler 2 | 2 . . Hauler 2 | . 2 . Operator 1 | . . 1 Watcher 3 | . 3 . Swarmer 8 | . 5 3 Grunt 5 | . 4 1 Sentry 2 | . . 2 Best Kill Streak 3 | 2 3 3 Combat Bots Only 3 | . 3 3 Max Kills in Single Turn 3 | 1 3 3 Gunslinging 1 | . 1 . Exploded 3 | . 2 3 Melee . | . . . Uniques/NPCs Destroyed . | . . . Combat | -11 -10 -9 -------- Run | Yrd Mat Mat Hostile Shots Fired 53 | . 19 34 Missed 19 | . 7 12 Hits 34 | . 12 22 Projectile 34 | . 12 22 Critical Strikes 1 | . . 1 Damage Taken 506 | . 145 361 Core 77 | . 63 14 Absorbed by Shields . | . . . Regen/Repaired (Parts) 11 | . 11 . Core Remaining (%) 87 | 100 74 . Volleys Fired 61 | 2 31 28 Largest 2 | 2 2 2 Hottest 140 | 60 70 140 Shots Fired 115 | 4 61 50 Gun 103 | 4 60 39 Cannon . | . . . Launcher 10 | . 1 9 Special 2 | . . 2 Kinetic 43 | 2 29 12 Thermal 2 | . . 2 Explosive 10 | . 1 9 Electromagnetic 60 | 2 31 27 Robot Hit Streak 5 | 2 5 3 Robot Miss Streak 6 | . 6 3 Penetration Max . | . . . Secondary Targets 2 | . 2 . Max Gunslinging Chain 1 | . 1 . Shots Hit Robots 57 | 2 31 24 Core Hits 38 | 2 23 13 Critical Kills . | . . . Critical Parts Destroyed . | . . . Critical Strikes 1 | . . 1 Corrupt 1 | . . 1 Melee Attacks . | . . . Impact . | . . . Slashing . | . . . Piercing . | . . . Sneak Attacks . | . . . Combat Hostiles . | . . . Follow-up Attacks . | . . . Damage Inflicted 1100 | 24 542 534 Guns 750 | 24 440 286 Cannons . | . . . Explosions 340 | . 92 248 Melee . | . . . Ramming 10 | . 10 . Kinetic 304 | . 199 105 Thermal . | . . . Explosive 340 | . 92 248 Electromagnetic 446 | 24 241 181 Impact . | . . . Slashing . | . . . Piercing . | . . . Highest Corruption . | . . . Average Corruption . | . . . Corruption Purged . | . . . Corruption Blocked . | . . . Overload Shots . | . . . Overflow Damage 13 | . . 13 Projectiles . | . . . Explosions 13 | . . 13 Melee . | . . . Knockbacks . | . . . Impact . | . . . Kinetic . | . . . Secondary . | . . . Self-Inflicted Damage 65 | . . 65 Shots 3 | . . 3 Rammed . | . . . Targets Rammed 4 | . 4 . Kicked 4 | . 4 . Crushed . | . . . Highest Temperature 50 | . 18 50 Average Temperature 14 | . 8 15 Received Heat Transfer 141 | . 21 120 Siege Activations . | . . . Martial Activations . | . . . Shielding Activations . | . . . Robots Disrupted . | . . . Combat Hostiles . | . . . Robots Corrupted . | . . . Combat Hostiles . | . . . Parts Fried 1 | . 1 . Impact Corruptions . | . . . Robots Melted . | . . . Combat Hostiles . | . . . Parts Melted . | . . . Heat Transferred . | . . . Parts Sabotaged . | . . . Parts Stolen . | . . . Parts Stripped . | . . . Power Chain Reactions . | . . . Alert | -11 -10 -9 ------- Run | Yrd Mat Mat Maximum Alert Level . | . . . Low Security (%) 100 | 100 100 100 Level 1 . | . . . Level 2 . | . . . Level 3 . | . . . Level 4 . | . . . Level 5 . | . . . High Security . | . . . Max Security . | . . . Peak Influence 141 | 5 94 141 Initial 34 | . . 34 Average 30 | 1 21 64 Influence Increases 564 | 10 288 266 Destroy 0b10 Robot/C 300 | . 180 120 Destroy 0b10 Robot/NC 55 | 10 35 10 Destroy Leader 90 | . 50 40 Successful Hack 7 | . 5 2 Disable Machine 30 | . . 30 Destroy Structure 67 | . 3 64 Lose Combat Pursuer 15 | . 15 . Influence Decreases 424 | 10 206 208 Entered New Map 48 | . . 48 Time Decay 356 | 10 206 140 Lost Part 20 | . . 20 Squads Dispatched 2 | . 1 1 Investigation . | . . . Extermination . | . . . Reinforcement 2 | . 1 1 Assault . | . . . Garrison . | . . . Intercept . | . . . Searches Triggered . | . . . Construction Impeded . | . . . Haulers Reinforced . | . . . Active Scanning Responses . | . . . Cargo Convoy Interrupts . | . . . Stealth | -11 -10 -9 --------- Run | Yrd Mat Mat Distress Signals 1 | . . 1 Communications Jammed . | . . . Distress Signals . | . . . Times Spotted 26 | . 17 9 Peak Tracking Total 4 | . 3 4 Tactical Retreats 1 | . 1 . Traps | -11 -10 -9 ------- Run | Yrd Mat Mat Traps Triggered 1 | . 1 . Indirectly . | . . . Trap Hack Attempts . | . . . Triggered . | . . . Disarmed . | . . . Reprogrammed . | . . . Reused . | . . . Traps Extracted . | . . . Installed . | . . . Triggered . | . . . Machines | -11 -10 -9 ---------- Run | Yrd Mat Mat Machines Disabled 2 | . . 2 Max in Single Turn 1 | . . 1 Machines Repaired . | . . . Machines Dismantled . | . . . Machines Sabotaged . | . . . Overloaded Fab Kills . | . . . Hacking | -11 -10 -9 --------- Run | Yrd Mat Mat Machines Accessed 2 | . 1 1 Terminals . | . . . Fabricators . | . . . Repair Stations 1 | . 1 . Recycling Units . | . . . Scanalyzers 1 | . . 1 Garrison Access . | . . . Total Hacks 6 | . 2 4 Successful 6 | . 2 4 Failed . | . . . Catastrophic . | . . . Database Lockouts . | . . . Manual . | . . . Terminals . | . . . Fabricators . | . . . Repair Stations 2 | . 2 . Recycling Units . | . . . Scanalyzers 4 | . . 4 Garrison Access . | . . . Terminal Hacks . | . . . Fabricator Hacks . | . . . Repair Station Hacks 2 | . 2 . Scan Component 1 | . 1 . Repair 1 | . 1 . Recycling Unit Hacks . | . . . Scanalyzer 4 | . . 4 Insert Component 1 | . . 1 Analyze 1 | . . 1 Retrieve Study 2 | . . 2 Garrison Access Hacks . | . . . Unauthorized Hacks . | . . . Terminals . | . . . Fabricators . | . . . Repair Stations . | . . . Recycling Units . | . . . Scanalyzers . | . . . Garrison Access . | . . . Data Cores Recovered 1 | . . 1 Used . | . . . Hacking Detections 1 | . 1 . Full Trace Events . | . . . Feedback Events . | . . . Feedback Blocked . | . . . Robot Schematics Acquired . | . . . Robots Built . | . . . Authchips . | . . . Time . | . . . Total Robot Build Rating . | . . . Part Schematics Acquired 1 | . . 1 Parts Built . | . . . Authchips . | . . . Time . | . . . Total Part Build Rating . | . . . Part Studies Acquired 2 | . . 2 Parts Repaired 1 | . 1 . Time 26 | . 26 . Parts Recycled . | . . . Recycled Matter . | . . . Retrieved Matter . | . . . Retrieved Components . | . . . Parts Scanalyzed 1 | . . 1 Part Schematics Acquired 1 | . . 1 Parts Damaged . | . . . Bothacking | -11 -10 -9 ------------ Run | Yrd Mat Mat Used RIF Installer . | . . . Robots Hacked . | . . . Non-combat . | . . . Combat . | . . . Robot Hacks Applied . | . . . Relay Couplers Released . | . . . Fabnet Peak Effective % . | . . . Robots Rewired . | . . . Allies Hacked . | . . . Hacks Repelled . | . . . Allies | -11 -10 -9 -------- Run | Yrd Mat Mat Total Allies . | . . . Largest Group . | . . . Highest-Rated Group . | . . . Highest-Rated Ally . | . . . Total Orders . | . . . Ally Attacks . | . . . Total Damage . | . . . Kills . | . . . Allies Corrupted . | . . . Allies Melted . | . . . Intel | -11 -10 -9 ------- Run | Yrd Mat Mat Active Infowar (turns) 1117 | 17 835 265 Sensors 41 | . . 41 Terrain 633 | . 410 223 Seismic 900 | 17 835 48 Robot Analysis Total . | . . . Derelict Logs Recovered . | . . . Drone Launches . | . . . Drone Recoveries . | . . . Exploration | -11 -10 -9 ------------- Run | Yrd Mat Mat Turns Passed 1206 | 80 835 291 Spaces Moved 750 | 57 524 169 Core 5 | 5 . . Treads . | . . . Legs 745 | 52 524 169 Wheels . | . . . Hover . | . . . Flight . | . . . Fastest Speed 50 | 50 120 105 Average Speed 117 | 113 120 109 Slowest Speed 120 | 120 120 120 Overloaded Moves . | . . . Propulsion Burnouts . | . . . Robots Hopped . | . . . Potential Cave-ins . | . . . Cave-ins Triggered . | . . . Exploration Rate (%) 26 | 3 59 16 Regions Visited 2 Branch Regions . Pre-discovered Areas . | . . . Known Exits Taken . | . . . Unknown Exits Taken 2 | 1 1 . Scrap Searched . | . . . Spaces Dug . | . . . Terrain Destroyed 74 | . 3 71 Melee . | . . . Projectile . | . . . AOE 74 | . 3 71 Terrain Rammed . | . . . Walls Destroyed . | . . . Machines Disabled . | . . . Actions | -11 -10 -9 --------- Run | Yrd Mat Mat Total 949 | 65 666 218 Wait 98 | . 92 6 Move 748 | 56 523 169 Hop . | . . . Pick Up 6 | 1 5 . Fast Attach 10 | 6 2 2 Attach 3 | . . 3 Detach 4 | . . 4 Swap 12 | . 6 6 Drop 3 | . 3 . Fire 61 | 2 31 28 Melee . | . . . Ram . | . . . Kick 4 | . 4 . Crush . | . . . Escape Stasis . | . . . Rewire . | . . . Trap . | . . . Miscellaneous . | . . . Route ------- -11/Scrapyard -10/Materials (discovered 2 exits: *Mat x2) -9/Materials History --------- Turn | Location | Event 5 | -11/Scrapyard | Discovered new exit (range 16) 81 | -11/Scrapyard | Entered Materials 313 | -10/Materials | Build established: Mutant 381 | -10/Materials | Discovered new exit (range 16) 844 | -10/Materials | Repaired Aluminum Leg 895 | -10/Materials | Discovered new exit (range 15) 916 | -10/Materials | Entered another Materials area 916 | -9/Materials | Evolved 2 slots: Propulsion x2 1207 | -9/Materials | Self-destructed Last Messages --------------- 01171_ U-05 Engineer builds a Wall. 01172_ R-06 Scavenger inserts Flight Unit into recycling unit. 01175_ U-05 Engineer lays Concrete. 01177_ U-05 Engineer builds a Wall. 01180_ TF Node disabled. 01180_ Signal Interpreter tumbles out of TF Node. 01180_ Door malfunctions. 01182_ U-05 Engineer lays Concrete. 01184_ U-05 Engineer builds a Wall. 01189_ Aluminum Leg+ destroyed. 01189_ Destroyed Aluminum Leg+. 01189_ Terrain Scanner destroyed. [Achievement: Overwhelming] 01189_ Destroyed Terrain Scanner. 01189_ Y-45 Defender destroyed. 01189_ U-05 Engineer lays Concrete. 01191_ U-05 Engineer builds a Wall. 01196_ U-05 Engineer destroyed. 01201_ Acquired 43 matter. 01205_ The unstable cave ceiling collapses. Map ----- +----------------------------------------------------+ | ???????????????# """ # # " | | ????????##?????# # # " | | ??????????????## + # | | ???????#?#?????#####+##### # | | ???????#???#?????# # | | ????????###??????# # | | ???????? !##?????# + " | | ????#### !#???#?# """=[# " | | ???## !#???#?# """* # " | | ??#?# !#?????# """= # " | | ???## !#?#???# *# " | | ????# !##????## # | | ???## #########?# """ #### | | ???# ####"T"### """ # | | ??## ! """ # " | | ??# + " | | #?# ## # | | ??# # ## """ " # | | ?? "" """ T # | | ??# !% "Y """ =% " #### | | ??# "" """ [ #### | | ?## ## | | ??# ### #" "###### | | ?#?# ###u####### #"R"#??#?? | | ???# ### #"""#????? | | ???# @ #?# ###??????? | | ???# !!! #?? #???? ???? | | ???# !!! #?? #?#??????? | | ??## !!! #?? #???????? | | ??# #?????????????? | | ??# * #?????????????? | | ??## #??????????? ?? | | ??# #?????????????? | | ??### ######?????????????? | | ???? ##??????????????????? | | ???? # ???????????????????? | | ???# # ??????????????????? | | ???# ! ?????????????????? | | ??? ? ????????????????? | | ??? ???????????????? | | ???###/####?####??????????????? | | ?????? ???????????????????????? | | ?????? ???????????????????????? | | ?????? ???????????????????????? | | ??????"???????????????????????? | | ??????????????????????????????? | | ??????????????????????????????? | | ??????????????????????????????? | | ??????????????????????????????? | | ??????????????????????????????? | +----------------------------------------------------+ Best States ------------- Heat Dissipation 28 Energy Generation 12 Energy Capacity 265 Matter Stores 300 Matter Capacity 300 Sight Range 16 Robot Scan Range 14 Terrain Scan Range 14 Terrain Scan Density 10 Evasion (%) 55 Item Schematics ----------------- Seismic Detector | -9/Materials | Scanalyzed Robot Schematics ------------------ None Fabricated ------------ Nothing Repaired ---------- Aluminum Leg | 87% | -10/Materials Studied --------- Aluminum Leg | -9/Materials | Hacked Assault Rifle | -9/Materials | Hacked Alien Tech Used ----------------- None Achievements -------------- Overwhelming Challenges ------------ None Game ------ Seed ActuatorDisruptorMesh Manual? 0 Play Time 00:12:04 Cumulative 10.5 hours Start 2025.10.26 @ 13:50:19 End 2025.10.28 @ 01:32:49 Sessions 3 Manual Loads 0 Difficulty Rogue Special Mode None Game No. 28 Rogue 28 Adventurer 0 Explorer 0 Win Type - Total 0 Types 0/0/0/0/0/0/0/0/0/0 Lore% 3 Gallery% 10 Achievement% 9 Wizard Run 0 Options --------- Layout 0 ASCII 0 Keyboard 1 Movement Arrows Keybinds 0 Fullscreen 1 Font 24/Smallcaps Map View 38x25 Zoom Use 28% Tactical HUD 1 Map Filters NONE Filters NONE Steam 1 RUN: c3c2d628-397b-437d-9b60-981614b6999a